bitfinex-derivatives/quotes_ETHF0:USTF0_20260310
["timestamp","ask_amount","ask_price","bid_price","bid_amount"]
[1773136023236,2.34168784,2066.5,2065.7,8.555]
[1773136023441,2.34168784,2066.2,2065.7,8.555]
[1773136023639,2.34168784,2066.2,2065.5,10.8148936]
[1773136023836,2.34168784,2066.2,2065.6,2.2598936]
[1773136025346,2.34168784,2066.2,2065.3,2.26413141]
[1773136025648,2.34168784,2066.2,2065.4,2.2598936]
[1773136028250,2.34168784,2066.2,2065.5,8.562]
[1773136028555,2.34168784,2066.2,2065.6,2.2598936]
[1773136030054,2.34168784,2066.2,2065.5,8.562]
[1773136030756,2.34168784,2066.2,2065.5,10.8218936]
[1773136031056,2.34168784,2066.2,2065.6,2.2598936]
[1773136031253,2.34168784,2066.2,2065.5,8.562]
[1773136031454,2.34168784,2066.2,2065.5,10.8218936]
[1773136032053,2.34168784,2066.2,2065.5,2.2598936]
[1773136032351,2.34168784,2066.2,2065.3,2.26413141]
[1773136038164,2.34168784,2066.2,2065.3,9.7656194]
[1773136038363,2.34168784,2066.2,2065.4,2.2598936]
[1773136039059,2.23556567,2066.0,2065.3,0.00423781]
[1773136039261,5.78801672,2065.9,2065.0,2.2598936]
[1773136039462,2.23556567,2065.8,2065.0,2.2598936]
[1773136040365,2.24140923,2065.8,2065.0,2.26502462]
[1773136041269,0.00584356,2065.8,2065.0,9.76651261]
[1773136041467,0.00584356,2065.8,2065.1,2.2598936]
[1773136042163,2.24140923,2065.8,2065.1,2.2598936]
[1773136042362,2.24140923,2065.8,2065.2,10.8468936]
[1773136042567,2.24140923,2065.8,2065.3,2.2598936]
[1773136043366,2.24140923,2065.8,2065.2,8.587]
[1773136043565,2.24140923,2065.8,2065.3,2.2598936]
[1773136044272,2.24140923,2065.8,2065.3,10.8508936]
[1773136044570,2.24140923,2065.8,2065.4,2.2598936]
[1773136044765,2.24140923,2065.8,2065.3,10.8508936]
[1773136044966,2.24140923,2065.8,2065.3,2.2598936]
[1773136049672,0.00584356,2065.8,2065.1,2.2598936]
[1773136051772,0.00584356,2065.8,2065.0,6.45906233]
[1773136051773,2.24140923,2065.8,2065.0,6.45906233]
[1773136051971,2.24140923,2065.8,2064.2,10.9650936]
[1773136051972,2.23556567,2065.6,2064.8,2.2598936]
[1773136052180,2.23556567,2065.4,2064.8,2.2598936]
[1773136052878,2.23556567,2065.4,2064.8,2.26419574]
[1773136053078,2.23556567,2065.4,2064.8,0.00430214]
[1773136053470,2.23556567,2065.4,2064.9,8.612]
[1773136054172,2.23556567,2065.4,2064.8,0.00430214]
[1773136054376,2.23556567,2065.4,2064.4,2.65200538]
[1773136055373,2.23556567,2065.4,2064.4,2.65542757]
[1773136056782,2.23556567,2065.4,2064.6,2.65200538]
[1773136057280,2.23556567,2065.4,2064.8,2.65200538]
[1773136057675,2.23556567,2065.4,2064.8,11.27000538]
[1773136058786,2.63842304,2065.6,2064.9,2.65200538]
[1773136059380,2.63842304,2065.6,2065.0,11.27200538]
[1773136059580,2.63842304,2065.6,2065.1,8.62]
[1773136059878,2.63842304,2065.6,2064.8,8.62]
[1773136060077,2.63842304,2065.6,2064.9,8.62]
[1773136060279,2.63842304,2065.6,2064.9,11.27200538]
[1773136060480,2.63842304,2065.6,2064.9,11.27300538]
[1773136060782,2.63842304,2065.6,2064.9,8.621]
[1773136060978,2.63842304,2065.6,2064.8,2.65200538]
[1773136061178,2.63842304,2065.6,2064.9,11.27300538]
[1773136061377,2.63842304,2065.6,2064.9,2.65200538]
[1773136061578,2.63842304,2065.6,2064.9,11.27300538]
[1773136061778,0.24206,2065.5,2064.5,2.65200538]
[1773136061982,2.63842304,2065.4,2064.6,8.621]
[1773136062380,2.63842304,2065.4,2064.6,8.622]
[1773136063385,2.63842304,2065.4,2064.6,11.27400538]
[1773136063583,2.63842304,2065.4,2064.7,2.65200538]
[1773136064583,2.63842304,2065.4,2064.7,8.623]
[1773136065186,2.63842304,2065.4,2064.8,2.65200538]
[1773136067892,2.63842304,2065.4,2064.5,2.82076269]
[1773136068897,2.63842304,2065.4,2064.6,8.624]
[1773136069996,2.63842304,2065.4,2064.5,2.82076269]
[1773136070200,2.63842304,2065.4,2064.6,8.624]
[1773136070700,2.63842304,2065.4,2064.5,2.82076269]
[1773136070992,2.63842304,2065.4,2064.5,11.44476269]
[1773136071797,2.63842304,2065.4,2064.6,2.82076269]
[1773136072199,2.70005253,2065.2,2064.5,2.82076269]
[1773136072499,2.70005253,2065.2,2064.5,11.44476269]
[1773136073399,2.70005253,2065.2,2064.6,2.82076269]
[1773136074994,2.70005253,2065.0,2064.0,3.32076269]
[1773136075196,2.70005253,2065.0,2064.1,2.82076269]
[1773136076092,2.70005253,2065.0,2064.1,2.82472375]
[1773136076395,2.70005253,2065.5,2064.1,2.82472375]
[1773136076592,2.70005253,2065.3,2064.1,2.82472375]
[1773136078503,2.70005253,2065.3,2064.3,2.82076269]
[1773136078704,2.70005253,2065.3,2064.5,2.82076269]
[1773136079704,2.70005253,2065.1,2064.5,2.82076269]
[1773136080604,4.04840739,2065.5,2064.5,2.82076269]
[1773136080807,8.78333318,2065.4,2064.5,2.82076269]
[1773136080999,2.70005253,2065.4,2064.5,2.82076269]
[1773136081202,2.70005253,2065.4,2064.7,2.82076269]
[1773136081504,2.70005253,2065.4,2064.7,11.45676269]
[1773136082202,2.70005253,2065.4,2064.7,2.82076269]
[1773136082402,2.70005253,2065.4,2064.7,11.45876269]
[1773136082607,2.70005253,2065.5,2064.8,2.82076269]
[1773136082807,2.70005253,2065.7,2064.8,2.82076269]
[1773136083105,2.70005253,2065.5,2064.8,2.82076269]
[1773136084998,2.62872773,2065.7,2064.8,2.82076269]
[1773136089112,0.00584356,2065.8,2065.0,2.77970222]
[1773136090509,2.63457129,2065.8,2065.0,2.77970222]
[1773136090713,2.63457129,2065.8,2065.2,2.77970222]
[1773136090914,2.63457129,2065.8,2065.3,2.77970222]
[1773136091413,2.63457129,2065.8,2065.1,2.77970222]
[1773136092805,2.87660129,2065.8,2064.8,2.77970222]
[1773136093010,2.62872773,2065.5,2064.8,2.77970222]
[1773136095618,2.62872773,2065.7,2064.8,2.77970222]
[1773136100220,2.62872773,2065.7,2064.9,2.77970222]
[1773136102924,0.00584356,2065.8,2064.9,2.77970222]
[1773136103126,2.63457129,2065.8,2064.9,2.77970222]
[1773136105624,2.62872773,2065.7,2064.9,2.77970222]
[1773136107826,1.87516464,2065.6,2064.9,2.77970222]
[1773136108026,2.62872773,2065.5,2064.9,2.77970222]
[1773136110219,2.62872773,2065.7,2065.1,1.87516464]
[1773136110424,0.00584356,2065.8,2065.2,2.77970222]
[1773136110624,2.62872773,2065.7,2065.2,2.77970222]
[1773136111225,2.63457129,2065.8,2065.2,2.77970222]
[1773136111522,4.04840739,2066.4,2065.6,2.77970222]
[1773136111828,7.90976611,2066.5,2065.6,2.77970222]
[1773136111829,2.62872773,2066.2,2065.6,2.77970222]
[1773136112524,2.63416539,2066.2,2065.6,2.78385598]
[1773136114325,0.00543766,2066.2,2065.6,2.78385598]
[1773136114529,0.00543766,2066.2,2065.6,4.65902062]
[1773136114725,2.55907141,2066.2,2065.7,2.51619344]
[1773136117630,2.55907141,2066.2,2065.6,0.00415376]
[1773136118026,2.55907141,2066.2,2065.6,2.5203472]
[1773136118231,0.00543766,2066.2,2065.6,2.5203472]
[1773136119133,2.55363375,2066.9,2065.6,2.5203472]
[1773136119731,2.55363375,2066.9,2065.9,2.51619344]
[1773136119929,2.55363375,2066.9,2066.1,2.51619344]
[1773136120135,2.55760729,2066.9,2066.1,2.51619344]
[1773136123340,2.55760729,2066.9,2066.0,8.667]
[1773136123740,2.55363375,2066.7,2065.7,2.51619344]
[1773136124839,2.55363375,2066.5,2065.7,2.51619344]
[1773136132054,2.53244441,2066.9,2065.7,2.51619344]
[1773136134158,2.77040087,2066.6,2065.7,2.51619344]
[1773136134651,2.52847087,2066.6,2065.7,2.51619344]
[1773136141662,2.52847087,2066.6,2065.8,2.50591616]
[1773136142157,1.87349444,2066.5,2065.8,2.50591616]
[1773136142364,0.00397354,2066.9,2065.7,2.50591616]
[1773136142365,2.52847087,2066.0,2065.7,2.50591616]
[1773136142857,2.52847087,2066.0,2065.6,0.00415376]
[1773136143057,2.52847087,2066.0,2065.6,2.51006992]
[1773136143262,1.87349444,2065.8,2065.4,2.50591616]
[1773136143559,2.57282295,2065.9,2065.4,2.50591616]
[1773136143761,2.57282295,2066.2,2065.4,2.50591616]
[1773136144260,2.57282295,2066.2,2065.4,2.50987473]
[1773136149064,2.57282295,2066.2,2065.4,0.00395857]
[1773136149463,2.57282295,2066.2,2065.4,2.43719988]
[1773136152366,2.57282295,2066.0,2064.8,2.43324131]
[1773136152567,2.57282295,2065.8,2064.8,2.43324131]
[1773136153466,2.57282295,2065.8,2064.8,2.43693538]
[1773136155163,2.57282295,2065.6,2064.8,2.43693538]
[1773136156367,2.57282295,2065.6,2064.8,0.00369407]
[1773136161571,2.57282295,2065.4,2064.1,2.43324131]
[1773136161769,2.57282295,2065.2,2064.1,2.43324131]
[1773136162577,2.57873988,2065.2,2064.1,2.43850244]
[1773136164476,2.57873988,2065.2,2064.3,2.43324131]
[1773136165979,0.00591693,2065.2,2064.5,2.43324131]
[1773136166379,2.57282295,2065.4,2064.5,2.43324131]
[1773136167279,2.578604,2065.4,2064.5,2.43324131]
[1773136167480,0.00578105,2065.4,2064.7,2.43324131]
[1773136167981,2.57282295,2065.8,2064.9,2.43324131]
[1773136168880,2.57729752,2065.8,2064.9,2.43324131]
[1773136182891,2.46269929,2065.6,2064.3,2.48190919]
[1773136186196,2.3353194,2065.4,2064.3,2.48190919]
[1773136188491,2.3353194,2065.4,2064.5,2.31783308]
[1773136191394,2.3353194,2065.7,2064.7,2.31783308]
[1773136193297,2.3353194,2065.7,2064.9,2.31783308]
[1773136193500,2.33979397,2065.8,2064.9,2.31783308]
[1773136198300,2.33979397,2065.8,2065.1,2.31783308]
[1773136203908,0.00447457,2065.8,2065.1,2.31783308]
[1773136204108,2.37217297,2066.0,2065.1,2.31783308]
[1773136205107,2.37644961,2066.0,2065.1,2.31783308]
[1773136207808,2.61844961,2066.0,2065.1,2.31783308]
[1773136210108,2.37644961,2066.0,2065.1,2.31783308]
[1773136210906,0.00427664,2066.0,2065.3,2.30036662]
[1773136211210,2.37217297,2066.5,2065.5,2.30036662]
[1773136212006,2.37592271,2066.5,2065.5,2.30036662]
[1773136215605,2.61786271,2066.5,2065.5,2.30036662]
[1773136217505,2.37592271,2066.5,2065.5,2.30036662]
[1773136218514,2.61786271,2066.5,2065.5,2.30036662]
[1773136219115,2.37217297,2066.3,2065.5,2.30036662]
[1773136227923,2.37217297,2066.3,2065.1,2.30036662]
[1773136232429,2.37217297,2066.3,2065.3,2.30036662]
[1773136238629,2.61414297,2066.3,2065.0,2.23084821]
[1773136238834,2.36598472,2066.1,2065.0,2.23084821]
[1773136243440,2.36598472,2065.9,2065.0,2.23084821]
[1773136245542,2.36598472,2065.9,2065.1,2.23084821]
[1773136246141,2.36598472,2066.1,2065.5,2.23084821]
[1773136246439,2.36598472,2066.1,2065.8,2.23084821]
[1773136246643,2.36598472,2066.1,2065.8,2.23470643]
[1773136248039,2.36598472,2066.3,2065.8,2.23470643]
[1773136248443,2.36598472,2066.3,2065.9,2.23084821]
[1773136248647,2.31938945,2066.4,2065.9,2.23084821]
[1773136248942,2.32313919,2066.5,2066.1,2.2396584]
[1773136249143,0.00374974,2066.5,2066.2,4.11445793]
[1773136249445,2.31938945,2066.6,2066.2,2.2396584]
[1773136250239,2.32541351,2066.6,2066.2,2.2396584]
[1773136250439,2.31938945,2066.5,2065.9,2.2396584]
[1773136250841,2.31938945,2066.5,2066.1,2.2396584]
[1773136253445,0.00602406,2066.6,2066.1,2.2396584]
[1773136254442,2.32541351,2066.6,2066.1,2.2396584]
[1773136261249,2.32541351,2066.6,2065.9,2.2396584]
[1773136261652,2.31938945,2066.4,2065.5,2.2396584]
[1773136262851,2.31938945,2066.4,2065.5,2.24456207]
[1773136270451,2.22526361,2066.3,2065.5,2.24456207]
[1773136274854,5.69426361,2066.4,2065.5,2.24456207]
[1773136275055,3.469,2066.4,2065.7,2.19380808]
[1773136275358,2.23128767,2066.6,2066.0,2.19380808]
[1773136275553,2.22526361,2066.5,2065.6,2.19380808]
[1773136278752,2.22526361,2066.9,2065.9,2.19380808]
[1773136279054,2.22526361,2066.6,2065.9,2.19380808]
[1773136279763,2.23034003,2066.6,2065.9,2.19380808]
[1773136283261,2.22526361,2066.5,2065.9,2.19380808]
[1773136285255,0.00507642,2066.6,2065.9,2.19380808]
[1773136286062,0.00507642,2066.6,2066.1,2.19380808]
[1773136287662,2.22526361,2066.8,2066.1,2.19380808]
[1773136287867,2.22526361,2067.2,2066.1,2.19380808]
[1773136288565,2.22526361,2067.6,2066.8,2.19380808]
[1773136288764,2.22526361,2067.4,2066.3,2.19380808]
[1773136291965,0.00562498,2067.6,2067.1,2.19380808]
[1773136292270,0.00562498,2067.6,2067.1,2.19949335]
[1773136292567,2.22526361,2067.9,2067.1,2.19949335]
[1773136293173,2.22526361,2068.7,2067.4,2.19380808]
[1773136293374,2.22526361,2068.5,2067.4,2.19380808]
[1773136293575,2.23052511,2068.5,2067.4,2.19380808]
[1773136293867,2.23052511,2068.5,2067.6,2.36057258]
[1773136294273,2.21531871,2068.8,2067.8,2.36057258]
[1773136294574,2.21531871,2068.8,2068.0,2.36057258]
[1773136295372,2.22055502,2068.8,2068.0,2.36057258]
[1773136296270,2.22055502,2068.8,2067.5,2.36057258]
[1773136301979,2.21531871,2068.6,2067.5,2.36057258]
[1773136313383,2.21531871,2068.6,2067.7,2.15336559]
[1773136317386,2.2560426,2068.4,2067.2,2.15336559]
[1773136317685,2.2560426,2068.2,2067.2,2.15336559]
[1773136320190,2.2560426,2068.0,2067.1,0.00568527]
[1773136320384,2.2560426,2068.0,2067.1,2.15905086]
[1773136321792,2.2560426,2068.0,2067.1,0.00568527]
[1773136321989,2.2560426,2068.0,2066.8,2.15336559]
[1773136321990,2.2560426,2067.8,2066.8,2.15336559]
[1773136322189,2.2560426,2067.6,2066.8,2.15336559]
[1773136322390,2.2560426,2067.6,2066.2,2.15336559]
[1773136323090,2.2560426,2067.6,2066.2,2.1580655]
[1773136327396,2.24790669,2067.4,2066.2,2.1580655]
[1773136327992,2.24790669,2067.2,2066.2,2.1580655]
[1773136328192,2.25132883,2067.2,2066.2,2.1580655]
[1773136336299,2.24790669,2067.0,2066.2,2.1580655]
[1773136336501,2.24790669,2066.8,2065.9,2.11802249]
[1773136337400,2.24790669,2066.8,2065.9,2.12297227]
[1773136337999,2.24790669,2067.1,2066.1,2.11802249]
[1773136338602,0.00342214,2067.2,2066.1,2.11802249]
[1773136339301,2.25132883,2067.2,2066.1,2.11802249]
[1773136343206,0.00342214,2067.2,2066.5,2.11802249]
[1773136343506,2.24790669,2067.6,2066.5,2.11802249]
[1773136344204,2.24790669,2067.6,2066.7,2.11802249]
[1773136344402,0.00466272,2067.6,2066.7,4.9270835]
[1773136344600,0.00466272,2067.6,2066.8,2.11802249]
[1773136347600,2.25256941,2067.6,2066.8,2.11802249]
[1773136352909,0.00466272,2067.6,2066.8,2.11802249]
[1773136353208,2.24790669,2067.7,2066.8,2.11802249]
[1773136353412,2.24790669,2068.0,2067.1,2.11802249]
[1773136353607,1.42517601,2068.4,2067.4,2.12504795]
[1773136353809,0.00322109,2069.0,2068.0,2.31629986]
[1773136354204,0.00921214,2069.0,2068.0,2.32006636]
[1773136354409,0.00322109,2068.9,2068.0,2.32006636]
[1773136355517,0.00322109,2068.9,2068.3,2.30955787]
[1773136355811,0.30879405,2069.0,2068.3,2.30955787]
[1773136371026,0.00599105,2069.0,2068.3,2.30955787]
[1773136375226,0.19595211,2069.4,2068.3,2.30955787]
[1773136375433,0.20164632,2069.6,2068.3,2.30955787]
[1773136376234,0.20539164,2069.6,2068.3,2.30955787]
[1773136378935,0.00374532,2069.6,2068.5,5.15358383]
[1773136379135,0.00374532,2069.6,2068.6,2.34452282]
[1773136379735,0.17568091,2070.0,2068.9,2.34932722]
[1773136380337,0.1770527,2069.6,2068.9,2.34932722]
[1773136380738,0.18147678,2069.6,2068.9,2.34932722]
[1773136381234,0.17507935,2069.4,2068.9,2.34932722]
[1773136381434,0.17507935,2069.4,2068.3,2.33789808]
[1773136381842,1.03474354,2069.2,2068.3,2.33789808]
[1773136382338,1.27635354,2069.3,2068.3,2.33789808]
[1773136382530,1.0346253,2069.5,2068.3,2.33789808]
[1773136382730,0.00442408,2069.6,2068.5,2.33789808]
[1773136383341,1.09697176,2069.6,2068.5,2.33789808]
[1773136390649,0.99346684,2069.4,2068.5,2.33789808]
[1773136391446,0.99029097,2069.2,2068.5,2.33789808]
[1773136395351,0.94874248,2069.4,2068.5,2.33789808]
[1773136395551,6.86267217,2069.3,2068.5,2.33789808]
[1773136395747,0.94874248,2069.3,2068.5,2.33789808]
[1773136399053,0.00442408,2069.6,2068.5,2.33789808]
[1773136399054,0.93833368,2069.5,2068.5,2.33789808]
[1773136402557,0.93177791,2069.4,2068.5,2.33789808]
[1773136405253,0.00442408,2069.6,2068.5,2.33789808]
[1773136405448,0.00442408,2069.6,2068.5,12.39409386]
[1773136405654,0.00442408,2069.6,2068.6,2.4189924]
[1773136411055,0.90972907,2069.6,2068.6,2.4189924]
[1773136413662,0.00442408,2069.6,2068.6,2.4189924]
[1773136415365,0.91101711,2069.6,2068.6,2.4189924]
[1773136417967,0.90218886,2069.5,2068.6,2.4189924]
[1773136418365,1.14807519,2069.6,2068.6,2.4189924]
[1773136418666,0.90207111,2069.5,2068.6,2.4189924]
[1773136421669,0.00442408,2069.6,2068.6,2.4189924]
[1773136421969,0.86980957,2069.6,2068.6,2.4189924]
[1773136423674,0.86933117,2069.4,2068.6,2.4189924]
[1773136428180,0.75053465,2069.2,2068.6,2.4189924]
[1773136428374,0.75047589,2069.4,2068.6,2.4189924]
[1773136431578,0.73977606,2069.2,2068.6,2.4189924]
[1773136432880,0.73977606,2069.2,2068.6,2.41524273]
[1773136439783,1.00789163,2069.3,2068.6,2.41524273]
[1773136440680,0.7677782,2069.2,2068.6,2.41524273]
[1773136442884,0.24161,2069.3,2068.6,2.41524273]
[1773136444187,1.02768348,2069.3,2068.6,2.41524273]
[1773136444686,0.24161,2069.3,2068.6,2.41524273]
[1773136448287,0.80134571,2069.6,2068.6,2.41524273]
[1773136448491,0.00442408,2069.6,2068.6,2.41524273]
[1773136451890,0.84182303,2069.6,2068.6,2.41524273]
[1773136455594,2.70986307,2069.6,2068.7,2.3650368]
[1773136455791,0.84808081,2069.3,2068.7,2.3650368]
[1773136456294,2.71595574,2069.4,2068.7,2.3650368]
[1773136456692,0.84791002,2069.3,2068.7,2.3650368]
[1773136458595,0.00442408,2069.6,2068.7,2.3650368]
[1773136458794,0.79601529,2069.5,2068.7,2.3650368]
[1773136466701,0.00442408,2069.6,2068.7,2.3650368]
[1773136466907,0.7494964,2070.0,2068.7,2.3650368]
[1773136467106,6.67264549,2069.9,2068.7,2.3650368]
[1773136467402,0.75376888,2069.9,2068.7,2.3650368]
[1773136467806,6.67293891,2069.8,2068.7,2.3650368]
[1773136468008,0.76065391,2069.8,2068.7,2.3650368]
[1773136469806,0.76065391,2069.8,2068.9,2.3650368]
[1773136469807,0.00619159,2069.8,2068.9,2.3650368]
[1773136470708,0.82352869,2069.8,2068.9,2.3650368]
[1773136473913,0.81766653,2069.6,2068.9,2.3650368]
[1773136475418,0.82017171,2069.4,2068.9,2.3650368]
[1773136475913,0.82017171,2069.4,2068.1,2.29871376]
[1773136477614,1.86850896,2069.3,2068.5,2.29871376]
[1773136478116,4.29102436,2069.3,2068.5,2.29871376]
[1773136478311,1.86850896,2069.3,2068.5,2.29871376]
[1773136478517,4.29102436,2069.5,2068.7,2.29871376]
[1773136478813,1.86850896,2069.3,2068.7,2.29871376]
[1773136481317,2.4225154,2069.5,2068.8,2.29871376]
[1773136481516,1.86850896,2069.2,2068.8,2.29871376]
[1773136482017,2.4225154,2069.3,2068.8,2.29871376]
[1773136482516,2.4225154,2069.1,2068.8,2.29871376]
[1773136483509,2.4225154,2069.1,2068.3,2.29871376]
[1773136484106,1.86850896,2069.0,2068.3,2.29871376]
[1773136484414,2.4225154,2068.9,2068.3,2.29871376]
[1773136485920,2.4225154,2069.6,2068.9,2.29871376]
[1773136486114,2.4225154,2069.4,2068.9,2.29871376]
[1773136486416,1.86850896,2069.3,2068.9,2.29871376]
[1773136486716,2.4225154,2069.2,2068.5,2.29871376]
[1773136489918,1.86850896,2069.1,2068.5,2.29871376]
[1773136490118,2.4225154,2069.0,2068.5,2.29871376]
[1773136497125,1.86850896,2068.9,2068.5,2.29871376]
[1773136497530,2.39404726,2068.8,2068.5,2.29871376]
[1773136497727,1.86850896,2068.7,2068.1,2.42220982]
[1773136497928,2.39404726,2068.6,2068.1,2.42220982]
[1773136499832,2.39404726,2068.8,2068.1,2.42220982]
[1773136500733,2.39404726,2069.0,2068.1,2.42220982]
[1773136501333,2.39404726,2069.0,2068.3,2.42220982]
[1773136502436,2.39404726,2069.0,2068.5,2.42220982]
[1773136503335,2.39404726,2069.2,2068.5,2.42220982]
[1773136504434,2.2794126,2069.0,2068.5,2.42220982]
[1773136507040,2.2794126,2069.2,2068.5,2.42220982]
[1773136510340,2.2794126,2069.0,2068.5,2.42220982]
[1773136512334,2.2794126,2069.2,2068.5,2.42220982]
[1773136527947,2.2794126,2069.1,2068.1,2.33099757]
[1773136529350,2.2794126,2068.9,2068.1,2.33099757]
[1773136530751,2.2794126,2068.8,2068.1,2.33099757]
[1773136534157,2.38112238,2068.6,2068.0,0.0037665]
[1773136536058,2.38112238,2068.6,2068.0,2.40299194]
[1773136536858,2.38112238,2068.6,2068.0,0.0037665]
[1773136537255,4.24988865,2068.6,2068.0,0.0037665]
[1773136537462,2.38112238,2068.5,2068.0,0.0037665]
[1773136537761,2.38112238,2068.5,2067.8,2.39922544]
[1773136538359,2.38112238,2068.5,2067.1,2.39922544]
[1773136538864,2.38112238,2068.5,2067.1,2.40338916]
[1773136539757,2.38112238,2068.4,2067.1,2.40338916]
[1773136548866,2.38112238,2068.4,2067.4,2.39922544]
[1773136550669,1.86876627,2068.3,2067.4,2.39922544]
[1773136550866,2.38112238,2068.2,2067.4,2.39922544]
[1773136551068,2.38112238,2068.0,2067.2,2.39922544]
[1773136552265,2.38112238,2067.8,2067.2,2.39922544]
[1773136553672,0.24177,2067.9,2067.2,2.39922544]
[1773136553971,2.46623064,2067.9,2067.2,2.39922544]
[1773136559575,2.46623064,2067.9,2067.1,0.00416372]
[1773136559576,2.46623064,2067.9,2067.1,2.39962862]
[1773136559878,2.22446064,2067.6,2066.8,2.3954649]
[1773136560671,2.22446064,2067.6,2066.8,2.4011103]
[1773136563279,2.22446064,2068.1,2067.2,2.3954649]
[1773136564276,2.22446064,2068.1,2067.4,2.36647068]
[1773136565076,2.29873657,2068.2,2067.6,2.36647068]
[1773136565980,0.0050286,2068.3,2067.6,2.36647068]
[1773136566778,2.30376517,2068.3,2067.6,2.36647068]
[1773136569478,0.0050286,2068.3,2067.7,2.36647068]
[1773136570080,2.30376517,2068.3,2067.7,2.36647068]
[1773136577280,0.0050286,2068.3,2067.7,2.36647068]
[1773136578784,2.29873657,2068.6,2067.7,2.36647068]
[1773136579885,2.30457752,2068.6,2067.7,2.36647068]
[1773136586791,2.30457752,2068.6,2067.2,2.36647068]
[1773136586792,2.29873657,2068.4,2067.2,2.36647068]
[1773136591596,2.29873657,2068.4,2067.7,2.36647068]
[1773136593798,2.31087886,2068.6,2068.1,2.16522657]
[1773136595102,2.31087886,2068.6,2067.9,2.16522657]
[1773136596303,2.31087886,2068.6,2067.5,2.16522657]
[1773136596504,2.30503791,2068.4,2067.5,2.16522657]
[1773136601006,2.30503791,2068.4,2067.3,2.16522657]
[1773136601311,2.30503791,2068.2,2067.3,2.16522657]
[1773136602805,2.30503791,2068.0,2067.0,2.16522657]
[1773136603708,2.30503791,2068.0,2067.0,2.40710657]
[1773136603908,2.30503791,2068.0,2067.2,2.16522657]
[1773136609616,0.24173,2068.4,2067.2,2.16522657]
[1773136609816,2.19490157,2068.2,2067.2,2.16522657]
[1773136614415,2.19490157,2068.0,2067.2,2.16522657]
[1773136614612,2.19490157,2068.0,2066.9,2.30825727]
[1773136615821,2.19490157,2068.0,2066.9,2.55013727]
[1773136617516,2.19490157,2068.0,2067.1,1.8707774]
[1773136617818,2.19490157,2068.0,2067.2,2.30825727]
[1773136623328,2.19490157,2067.8,2067.1,2.30825727]
[1773136623926,2.19490157,2067.8,2067.2,2.22374276]
[1773136625426,2.19490157,2067.8,2067.4,2.22374276]
[1773136632438,2.16451527,2068.2,2067.8,2.22374276]
[1773136632638,2.16451527,2068.2,2067.7,4.09452016]
[1773136632932,2.16451527,2068.2,2067.5,2.22374276]
[1773136633132,1.8707774,2068.1,2067.2,2.22374276]
[1773136633323,2.16451527,2068.0,2067.2,2.22374276]
[1773136655851,2.16451527,2068.0,2066.9,2.10075779]
[1773136657349,2.11690774,2067.8,2066.9,2.10075779]
[1773136693578,2.10387872,2067.6,2066.9,2.10075779]
[1773136697079,2.10387872,2067.6,2067.0,2.05524398]
[1773136697682,2.10387872,2067.8,2067.2,2.05524398]
[1773136698282,2.10387872,2067.8,2067.4,2.05524398]
[1773136699173,2.10387872,2067.7,2067.0,2.05524398]
[1773136700883,2.10387872,2067.7,2067.2,2.05524398]
[1773136705583,2.10387872,2067.5,2067.0,2.05524398]
[1773136711286,2.10387872,2067.7,2067.1,2.05524398]
[1773136718999,2.01534472,2068.0,2067.3,1.99689558]
[1773136719195,2.01534472,2067.8,2067.3,1.99689558]
[1773136726801,1.95635133,2068.0,2067.3,1.99689558]
[1773136727003,1.95635133,2068.0,2067.5,1.96736216]
[1773136727302,2.85074455,2068.1,2067.5,1.96736216]
[1773136731600,1.95635133,2068.0,2067.5,1.96736216]
[1773136739418,2.76579687,2068.1,2067.5,1.96736216]
[1773136739419,0.89439322,2068.1,2067.5,1.96736216]
[1773136740114,2.85074455,2068.1,2067.5,1.96736216]
[1773136740612,1.95635133,2068.0,2067.5,1.96736216]
[1773136745920,1.89668994,2068.4,2067.7,2.03668615]
[1773136747013,1.89668994,2068.2,2067.7,2.03668615]
[1773136748022,1.89668994,2068.4,2067.7,2.03668615]
[1773136748221,1.89668994,2068.5,2067.9,2.03668615]
[1773136748422,1.90253089,2068.6,2067.9,2.03668615]
[1773136752827,3.76809359,2068.5,2067.9,2.03668615]
[1773136753423,1.89668994,2068.5,2067.9,2.03668615]
[1773136760926,1.89668994,2068.4,2067.4,1.94728521]
[1773136762233,1.89668994,2068.5,2067.6,1.9416043]
[1773136764837,1.89668994,2068.4,2067.6,1.9416043]
[1773136766639,1.89668994,2068.1,2067.1,1.94169818]
[1773136772337,1.89668994,2067.8,2067.1,1.94169818]
[1773136788452,0.24173,2068.3,2067.1,1.94169818]
[1773136788647,1.90213026,2068.1,2067.1,1.94169818]
[1773136789050,1.90213026,2068.4,2067.0,1.78276682]
[1773136789247,1.90213026,2068.4,2068.0,1.78276682]
[1773136789452,1.90213026,2068.4,2067.7,1.78285858]
[1773136791051,5.92107003,2069.1,2067.6,9.39766606]
[1773136791052,1.93915665,2069.1,2068.5,1.76581588]
[1773136791350,1.93915665,2069.1,2068.2,7.76974534]
[1773136791351,1.93915665,2069.1,2068.2,1.76581588]
[1773136791940,1.94399888,2069.1,2068.2,1.76958778]
[1773136792147,1.93915665,2068.9,2068.2,0.0037719]
[1773136795849,1.93915665,2068.6,2067.6,9.13205381]
[1773136796053,1.93915665,2068.6,2067.6,1.60404847]
[1773136796353,1.93915665,2068.0,2067.2,1.60404847]
[1773136796950,1.93915665,2068.0,2067.2,1.6099344]
[1773136801255,1.93915665,2068.0,2067.2,0.00588593]
[1773136803058,1.93915665,2068.0,2067.2,1.58823831]
[1773136803460,1.93915665,2068.0,2067.3,1.58235238]
[1773136804657,1.93915665,2068.0,2067.2,1.87554665]
[1773136804658,1.96478915,2068.4,2067.6,1.99695084]
[1773136807767,1.96478915,2068.9,2068.2,1.99695084]
[1773136809973,1.96478915,2069.0,2068.2,1.99695084]
[1773136814769,1.96963138,2069.1,2068.5,1.99695084]
[1773136815172,1.96963138,2069.1,2068.0,9.52495618]
[1773136815173,1.96478915,2068.8,2068.0,9.52495618]
[1773136815371,1.96478915,2068.7,2067.7,1.99695084]
[1773136815873,1.96478915,2068.4,2067.3,1.99695084]
[1773136823579,1.96478915,2068.2,2067.3,1.99695084]
[1773136824880,1.96478915,2068.0,2067.2,0.00588593]
[1773136825077,1.96478915,2068.0,2067.2,2.00283677]
[1773136826482,1.96478915,2068.5,2067.2,2.00283677]
[1773136828081,1.96478915,2068.5,2067.4,1.99695084]
[1773136829281,1.96478915,2068.3,2067.4,1.99695084]
[1773136830073,1.96478915,2068.3,2067.3,1.99695084]
[1773136830878,1.96478915,2068.1,2067.3,1.99695084]
[1773136831485,1.96478915,2067.9,2067.2,0.00588593]
[1773136835485,1.74609255,2067.7,2067.2,0.00588593]
[1773136836583,0.24179,2067.8,2066.5,7.52800534]
[1773136836584,1.74609255,2067.5,2066.5,7.52800534]
[1773136836790,1.98792255,2067.4,2066.5,1.76717061]
[1773136837186,0.24188,2067.0,2066.1,1.76717061]
[1773136837490,1.74609255,2066.9,2066.1,1.76717061]
[1773136837791,1.75078971,2066.9,2066.1,1.77286803]
[1773136841491,1.74609255,2066.7,2066.1,0.00569742]
[1773136843793,1.75078971,2066.9,2066.1,1.77286803]
[1773136845794,1.99267971,2066.9,2066.1,1.77286803]
[1773136857013,1.75078971,2066.9,2066.1,1.77286803]